fUST/lending_fUST_20250716
["ID","MTS","AMOUNT","RATE_DAILY","PERIOD"]
[372386463,1752621050628,-151.0,0.00025,7]
[372386464,1752621050643,-150.0,0.00025,2]
[372386465,1752621050652,-520.84375,0.00025,30]
[372386466,1752621050662,-151.0,0.00025,7]
[372386467,1752621050671,-151.0,0.00025,7]
[372386468,1752621050681,-151.0,0.00025,7]
[372386469,1752621050691,-500.0,0.00025014,2]
[372386470,1752621050700,-168.0,0.00025026,2]
[372386471,1752621050710,-168.0,0.00025031,2]
[372386472,1752621050719,-500.0,0.00025042,2]
[372386473,1752621050729,-608.0,0.00025066,2]
[372386474,1752621050739,-500.0,0.00025069,2]
[372386475,1752621050748,-150.943623,0.00025088,2]
[372386476,1752621050758,-205.0,0.0002509,2]
[372386477,1752621050844,-205.0,0.0002509,2]
[372386478,1752621050854,-496.70238856,0.00025096,2]
[372386479,1752621050864,-500.0,0.00025099,10]
[372386480,1752621050874,-1977.15,0.000251,7]
[372386481,1752621050888,-651.062,0.000251,2]
[372386482,1752621050898,-2889.212,0.000251,2]
[372386483,1752621050907,-151.0,0.00025121,7]
[372386484,1752621050916,-168.0,0.00025124,2]
[372386485,1752621050926,-500.0,0.00025153,10]
[372386487,1752621050935,-608.0,0.0002518,2]
[372386489,1752621050945,-958.43379851,0.00025181,2]
[372386491,1752621050954,-520.84375,0.000252,10]
[372386493,1752621050963,-500.0,0.00025203,10]
[372386495,1752621050973,-500.0,0.00025203,10]
[372386497,1752621050984,-500.0,0.00025203,10]
[372386498,1752621050993,-500.0,0.00025203,10]
[372386501,1752621051003,-500.0,0.00025204,10]
[372386503,1752621051012,-500.0,0.00025204,10]
[372386505,1752621051022,-500.0,0.00025204,10]
[372386507,1752621051031,-500.0,0.00025204,10]
[372386508,1752621051040,-500.0,0.00025204,10]
[372386510,1752621051049,-500.0,0.00025204,10]
[372386513,1752621051059,-869.31,0.00025205,2]
[372386515,1752621051071,-2713.8,0.00025205,2]
[372386517,1752621051081,-751.32,0.00025205,2]
[372386518,1752621051091,-1463.6,0.00025205,2]
[372386520,1752621051101,-2578.96,0.00025205,2]
[372386522,1752621051111,-948.44,0.00025205,2]
[372386524,1752621051120,-911.53,0.00025205,2]
[372386527,1752621051130,-1155.81,0.00025205,2]
[372386529,1752621051145,-1028.06,0.00025205,2]
[372386531,1752621051154,-889.98,0.00025205,2]
[372386533,1752621051163,-782.12,0.00025205,2]
[372386535,1752621051173,-469.14,0.00025205,2]
[372386537,1752621051182,-315.13927387,0.00025205,2]
[372386538,1752621051193,-465.35,0.00025205,2]
[372386541,1752621051205,-150.943623,0.0002521,10]
[372386542,1752621051214,-500.0,0.00025213,10]
[372386545,1752621051223,-15172.15386778,0.00025214,2]
[372386547,1752621051233,-608.0,0.00025253,2]
[372386549,1752621051243,-500.0,0.00025265,10]
[372386551,1752621051252,-500.0,0.00025265,10]
[372386553,1752621051262,-500.0,0.00025265,10]
[372386555,1752621051274,-500.0,0.00025266,10]
[372386557,1752621051283,-500.0,0.00025266,10]
[372386559,1752621051295,-500.0,0.00025266,10]
[372386560,1752621051305,-500.0,0.00025266,10]
[372386563,1752621051314,-500.0,0.00025266,10]
[372386565,1752621051324,-151.0,0.00025266,7]
[372386566,1752621051334,-151.0,0.00025266,7]
[372386568,1752621051343,-151.0,0.00025266,7]
[372386570,1752621051353,-151.0,0.00025266,7]
[372386572,1752621051362,-151.0,0.00025266,7]
[372386574,1752621051372,-151.0,0.00025266,7]
[372386576,1752621051383,-150.943623,0.00025286,6]
[372386578,1752621051393,-500.0,0.00025298,10]
[372386580,1752621051403,-500.0,0.00025299,10]
[372386582,1752621051412,-500.0,0.00025299,10]
[372386583,1752621051422,-500.0,0.00025299,10]
[372386585,1752621051431,-500.0,0.00025299,10]
[372386587,1752621051440,-500.0,0.00025299,10]
[372386589,1752621051450,-2000.0,0.000253,2]
[372386590,1752621051459,-2000.0,0.000253,2]
[372386591,1752621051469,-2000.0,0.000253,2]
[372386592,1752621051478,-2000.0,0.000253,2]
[372386593,1752621051487,-151.0,0.000253,7]
[372386594,1752621051497,-151.0,0.000253,7]
[372386595,1752621051506,-151.905852,0.000253,7]
[372386596,1752621051516,-151.0,0.000253,7]
[372386597,1752621051525,-151.0,0.000253,7]
[372386598,1752621051534,-151.0,0.000253,7]
[372386599,1752621051543,-151.0,0.000253,7]
[372386600,1752621051553,-181.259453,0.000253,7]
[372386601,1752621051562,-181.259453,0.000253,7]
[372386602,1752621051572,-151.0,0.000253,7]
[372386604,1752621051582,-151.0,0.000253,7]
[372386606,1752621051592,-151.0,0.000253,7]
[372386607,1752621051601,-245.627837,0.000253,7]
[372386608,1752621051611,-904.71,0.000253,31]
[372386609,1752621051621,-904.71,0.000253,31]
[372386610,1752621051630,-904.71,0.000253,31]
[372386611,1752621051643,-904.71,0.000253,31]
[372386612,1752621051652,-904.71,0.000253,31]
[372386613,1752621051661,-904.71,0.000253,31]
[372386614,1752621051671,-904.71,0.000253,31]
[372386615,1752621051681,-904.71,0.000253,31]
[372386616,1752621051691,-904.71,0.000253,31]
[372386617,1752621051700,-904.71,0.000253,31]
[372386618,1752621051710,-904.71,0.000253,31]
[372386619,1752621051719,-904.71,0.000253,31]
[372386620,1752621051728,-904.71,0.000253,31]
[372386621,1752621051738,-904.71,0.000253,31]
[372386622,1752621051747,-904.71,0.000253,31]
[372386623,1752621051757,-904.71,0.000253,31]
[372386624,1752621051767,-168.0,0.00025318,2]
[372386625,1752621051776,-150.943623,0.00025323,2]
[372386626,1752621051787,-2839.25704586,0.0002535,2]
[372386627,1752621051797,-608.0,0.0002537,2]
[372386628,1752621051807,-151.0,0.00025404,7]
[372386629,1752621051816,-1000.0,0.00025405,2]
[372386630,1752621051825,-1000.0,0.00025407,2]
[372386631,1752621051835,-2839.25704586,0.00025418,2]
[372386632,1752621051845,-461.5729828,0.00025419,2]
[372386633,1752621051854,-197.46016633,0.00025424,50]
[372386634,1752621051863,-190.0,0.0002543,2]
[372386635,1752621051872,-150.943623,0.0002543,10]
[372386636,1752621051884,-168.0,0.00025433,2]
[372386637,1752621051893,-205.0,0.0002544,2]
[372386638,1752621051903,-205.0,0.0002544,2]
[372386639,1752621051912,-215.0,0.0002544,2]
[372386640,1752621051922,-205.0,0.0002544,2]
[372386641,1752621051931,-205.0,0.0002544,2]
[372386642,1752621051941,-205.0,0.0002544,2]
[372386643,1752621051951,-205.0,0.0002544,2]
[372386644,1752621051960,-205.0,0.0002544,2]
[372386645,1752621051970,-205.0,0.0002544,2]
[372386646,1752621051979,-205.0,0.0002544,2]
[372386647,1752621051989,-205.0,0.0002544,2]
[372386648,1752621051999,-205.0,0.0002544,2]
[372386649,1752621052008,-150.943623,0.0002544,20]
[372386650,1752621052018,-1000.0,0.00025449,2]
[372386651,1752621052027,-1600.0,0.0002545,2]
[372386652,1752621052037,-231.28369723,0.00025461,2]
[372386653,1752621052047,-160.0,0.00025461,5]
[372386654,1752621052056,-284.22,0.00025465,2]
[372386655,1752621052066,-1000.0,0.00025468,2]
[372386656,1752621052075,-608.0,0.00025469,2]
[372386657,1752621052084,-900.0,0.00025469,3]
[372386658,1752621052094,-16269.88951725,0.0002547,2]
[372386659,1752621052103,-151.0,0.0002547,7]
[372386660,1752621052113,-1000.0,0.0002547,2]
[372386661,1752621052122,-869.48,0.00025479,2]
[372386662,1752621052134,-2714.00906138,0.00025479,2]
[372386663,1752621052143,-751.38284729,0.00025479,2]
[372386664,1752621052153,-1463.63,0.00025479,2]
[372386665,1752621052164,-500.0,0.00025479,2]
[372386666,1752621052173,-2578.97690916,0.00025479,2]
[372386667,1752621052183,-948.55,0.00025479,2]
[372386668,1752621052194,-911.71615825,0.00025479,2]
[372386669,1752621052204,-1155.88586159,0.00025479,2]
[372386670,1752621052213,-1028.19614185,0.00025479,2]
[372386671,1752621052223,-889.99294878,0.00025479,2]
[372386672,1752621052233,-782.30373509,0.00025479,2]
[372386673,1752621052242,-469.22296789,0.00025479,2]
[372386674,1752621052252,-465.38773601,0.00025479,2]
[372386675,1752621052262,-2620.46,0.00025486,2]
[372386676,1752621052273,-1000.0,0.00025487,2]
[372386677,1752621052283,-1315.0,0.00025498,12]
[372386678,1752621052292,-150.0,0.00025499,2]
[372386679,1752621052301,-150.0,0.00025499,2]
[372386680,1752621052311,-1000.0,0.000255,2]
[372386681,1752621052320,-250.0,0.000255,7]
[372386682,1752621052330,-250.0,0.000255,7]
[372386683,1752621052339,-250.0,0.000255,7]
[372386684,1752621052349,-150.0,0.000255,2]
[372386685,1752621052358,-150.0,0.000255,2]
[372386686,1752621052367,-647.0,0.000255,2]
[372386687,1752621052377,-529.999,0.000255,2]
[372386688,1752621052387,-429.0948676,0.00025507,2]
[372386689,1752621052396,-429.0948676,0.00025507,2]
[372386690,1752621052405,-429.0948676,0.00025507,2]
[372386691,1752621052415,-159.7039591,0.00025507,2]
[372386692,1752621052424,-301.8217344,0.00025507,2]
[372386693,1752621052432,-159.7039591,0.00025507,2]
[372386694,1752621052442,-159.7039591,0.00025507,2]
[372386695,1752621052451,-159.7039591,0.00025507,2]
[372386697,1752621052460,-153.0,0.00025507,2]
[372386698,1752621052470,-151.0,0.00025511,7]
[372386699,1752621052479,-151.0,0.00025511,7]
[372386700,1752621052489,-151.0,0.00025511,7]
[372386701,1752621052498,-252.920952,0.00025511,7]
[372386702,1752621052508,-151.0,0.00025511,7]
[372386703,1752621052518,-151.0,0.00025511,7]
[372386704,1752621052529,-151.0,0.00025511,7]
[372386705,1752621052538,-151.0,0.00025511,7]
[372386706,1752621052547,-151.0,0.00025511,7]
[372386707,1752621052556,-151.0,0.00025511,7]
[372386708,1752621052566,-151.0,0.00025511,7]
[372386709,1752621052575,-151.0,0.00025511,7]
[372386710,1752621052585,-151.0,0.00025511,7]
[372386711,1752621052594,-151.0,0.00025511,7]
[372386712,1752621052603,-151.0,0.00025511,7]
[372386713,1752621052613,-201.025695,0.00025511,7]
[372386714,1752621052622,-151.0,0.00025511,7]
[372386715,1752621052631,-181.259453,0.00025511,7]
[372386716,1752621052714,-181.259453,0.00025511,7]
[372386717,1752621052724,-181.259453,0.00025511,7]
[372386718,1752621052734,-151.0,0.00025511,7]
[372386719,1752621052743,-181.259453,0.00025511,7]
[372386720,1752621052752,-181.259453,0.00025511,7]
[372386721,1752621052761,-181.259453,0.00025511,7]
[372386722,1752621052770,-181.259453,0.00025511,7]
[372386724,1752621052779,-181.259453,0.00025511,7]
[372386726,1752621052788,-181.259453,0.00025511,7]
[372386728,1752621052797,-181.259453,0.00025511,7]
[372386729,1752621052807,-181.259453,0.00025511,7]
[372386730,1752621052817,-181.259453,0.00025511,7]
[372386732,1752621052826,-181.259453,0.00025511,7]
[372386734,1752621052836,-181.259453,0.00025511,7]
[372386735,1752621052845,-151.0,0.00025511,7]
[372386736,1752621052854,-151.0,0.00025511,7]
[372386737,1752621052864,-181.259453,0.00025511,7]
[372386738,1752621052873,-151.0,0.00025511,7]
[372386739,1752621052884,-181.259453,0.00025511,7]
[372386740,1752621052894,-151.0,0.00025511,7]
[372386741,1752621052904,-151.0,0.00025511,7]
[372386742,1752621052913,-151.0,0.00025511,7]
[372386743,1752621052922,-169.528248,0.00025511,7]
[372386744,1752621052931,-151.0,0.00025511,7]
[372386746,1752621052940,-151.0,0.00025511,7]
[372386748,1752621052950,-151.0,0.00025511,7]
[372386750,1752621052959,-151.0,0.00025511,7]
[372386752,1752621052968,-151.0,0.00025511,7]
[372386754,1752621052978,-151.0,0.00025511,7]
[372386756,1752621052987,-151.0,0.00025511,7]
[372386758,1752621052996,-151.0,0.00025511,7]
[372386760,1752621053005,-151.0,0.00025511,7]
[372386762,1752621053015,-151.0,0.00025511,7]
[372386764,1752621053024,-151.0,0.00025511,7]
[372386766,1752621053033,-151.0,0.00025511,7]
[372386768,1752621053043,-151.0,0.00025511,7]
[372386769,1752621053052,-151.0,0.00025511,7]
[372386770,1752621053061,-151.0,0.00025511,7]
[372386771,1752621053070,-230.258308,0.00025511,7]
[372386772,1752621053079,-151.0,0.00025511,7]
[372386773,1752621053088,-183.288372,0.00025511,7]
[372386774,1752621053097,-151.0,0.00025511,7]
[372386775,1752621053107,-151.0,0.00025511,7]
[372386776,1752621053116,-157.746996,0.00025511,7]
[372386777,1752621053126,-151.0,0.00025515,7]
[372386778,1752621053136,-151.0,0.00025515,7]
[372386779,1752621053145,-151.0,0.00025515,7]
[372386780,1752621053154,-175.882161,0.00025515,7]
[372386781,1752621053163,-151.0,0.00025518,7]
[372386782,1752621053173,-151.0,0.00025518,7]
[372386783,1752621053182,-151.0,0.00025518,7]
[372386784,1752621053195,-290.191259,0.00025518,7]
[372386785,1752621053203,-151.0,0.00025518,7]
[372386787,1752621053212,-151.0,0.00025518,7]
[372386788,1752621053221,-151.0,0.00025518,7]
[372386789,1752621053231,-151.0,0.00025518,7]
[372386790,1752621053242,-151.0,0.00025518,7]
[372386792,1752621053251,-151.0,0.00025518,7]
[372386795,1752621053261,-151.0,0.00025518,7]
[372386797,1752621053273,-151.0,0.00025518,7]
[372386798,1752621053282,-151.0,0.00025518,7]
[372386800,1752621053294,-151.0,0.00025518,7]
[372386802,1752621053303,-227.58389767,0.00025518,7]
[372386804,1752621053313,-796785.45926124,0.00025522,20]
[372386813,1752621053385,-151.0,0.00025519,7]
[372386815,1752621053394,-151.0,0.00025519,7]
[372386817,1752621053403,-156.836764,0.00025519,7]
[372386819,1752621053413,-151.0,0.00025519,7]
[372386821,1752621053422,-151.0,0.00025519,7]
[372386823,1752621053432,-207.463236,0.00025519,7]
[372386825,1752621053547,-273.88818117,0.00019178,2]
[372386826,1752621053564,-186.11181883,0.00019178,2]
[372386827,1752621053577,-557.88730717,0.00019178,2]
[372386828,1752621053596,-10.20269283,0.00019178,2]
[372386829,1752621053608,-460.0,0.00019178,2]
[372386830,1752621053621,-313.84270491,0.00019452,2]
[372386831,1752621053756,-460.0,0.00019178,2]
[372386832,1752621053770,-460.0,0.00019178,2]
[372386833,1752621053785,-254.24729509,0.00019452,2]
[372386834,1752621053797,-460.75215065,0.00019452,2]
[372386835,1752621053807,-460.0,0.00019452,2]
[372386836,1752621053819,-380.97486206,0.00019726,2]
[372386837,1752621053948,-460.0,0.00019178,2]
[372386838,1752621053977,-460.0,0.00019178,2]
[372386839,1752621054017,460.0,0.00019452,2]
[372386840,1752621054067,460.0,0.00019178,2]
[372386841,1752621054121,-187.11513794,0.00019726,2]
[372386842,1752621054131,-460.0,0.00019726,2]
[372386843,1752621054141,-568.09,0.0002,2]
[372386844,1752621054150,-324.28345346,0.0002,2]
[372386845,1752621054162,-135.71654654,0.0002,2]
[372386846,1752621054172,-568.09,0.00020273,2]
[372386847,1752621054182,-460.0,0.00020273,2]
[372386848,1752621054196,-568.09,0.00020547,2]
[372386849,1752621054206,-460.0,0.00020547,2]
[372386850,1752621054216,-568.09,0.00020821,2]
[372386851,1752621054226,-460.0,0.00020821,2]
[372386852,1752621054239,-568.09,0.00021095,2]
[372386853,1752621054250,-568.09,0.00021369,2]
[372386854,1752621054260,-568.09,0.00021643,2]
[372386855,1752621054271,-568.09,0.00021917,2]
[372386856,1752621054281,-568.09,0.00022191,2]
[372386858,1752621054290,-414.176,0.00022303,2]
[372386860,1752621054300,-568.09,0.00022465,2]
[372386862,1752621054310,-251.29682428,0.00022739,2]
[372386864,1752621054327,-460.0,0.00021095,2]
[372386866,1752621054338,-50.2507475,0.00022739,2]
[372386873,1752621054392,460.0,0.00019178,2]
[372386901,1752621054655,460.0,0.00019178,2]
[372386904,1752621054682,460.0,0.00019452,2]
[372386920,1752621054820,460.0,0.00019178,2]
[372386924,1752621054852,460.0,0.00019452,2]
[372386930,1752621054899,460.67903075,0.00019178,2]
[372386936,1752621054943,460.0,0.00019178,2]
[372386939,1752621054969,460.0,0.00019452,2]
[372386944,1752621054999,460.0,0.00019178,2]
[372386954,1752621055093,460.0,0.00019178,2]
[372386961,1752621055159,460.0,0.00019178,2]
[372386962,1752621055226,686.44,0.00019178,2]
[372386963,1752621055255,460.0,0.00019452,2]
[372386964,1752621055344,500.0,0.00019051,2]
[372386965,1752621055381,500.0,0.00019051,2]
[372386966,1752621055427,500.0,0.00019051,2]
[372386967,1752621055455,460.0,0.00019452,2]
[372386968,1752621055485,500.0,0.00019051,2]
[372386969,1752621055512,686.44,0.00019452,2]
[372386970,1752621055546,500.0,0.00019051,2]
[372386971,1752621055575,500.0,0.00019051,2]
[372386972,1752621055604,500.0,0.00019051,2]
[372386973,1752621055652,500.0,0.00019051,2]
[372386974,1752621055741,500.0,0.00019051,2]
[372386977,1752621055788,500.0,0.00019051,2]
[372386982,1752621055859,500.0,0.00019051,2]
[372386988,1752621055902,500.0,0.00019051,2]
[372386994,1752621055950,500.0,0.00019051,2]
[372386996,1752621056003,500.0,0.00019051,2]
[372387000,1752621056050,500.0,0.00019051,2]
[372387001,1752621056172,500.0,0.00019051,2]
[372387002,1752621056219,500.0,0.00019051,2]
[372387003,1752621056267,500.0,0.00019051,2]
[372387004,1752621056311,500.0,0.00019051,2]
[372387005,1752621056365,500.0,0.00019051,2]
[372387006,1752621056470,500.0,0.00019051,2]
[372387007,1752621056536,500.0,0.00019051,2]
[372387008,1752621056612,500.0,0.00019051,2]
[372387009,1752621058217,460.0,0.00019178,2]
[372387010,1752621058458,460.0,0.00019452,2]
[372387011,1752621059175,460.0,0.00019178,2]
[372387012,1752621059215,150.0,0.00017784,2]
[372387013,1752621059975,460.0,0.00019178,2]
[372387014,1752621060258,460.0,0.00019452,2]
[372387015,1752621060353,460.0,0.00019178,2]
[372387016,1752621060409,460.0,0.00019178,2]
[372387017,1752621060660,460.0,0.00019452,2]
[372387018,1752621060911,460.0,0.00019178,2]
[372387019,1752621061677,460.0,0.00019178,2]
[372387020,1752621062184,462.80415667,0.00019178,2]
[372387021,1752621062929,460.0,0.00019178,2]
[372387022,1752621063269,434.02922962,0.00019178,2]
[372387023,1752621064057,460.0,0.00019178,2]
[372387024,1752621065109,460.0,0.00019178,2]
[372387025,1752621065581,460.0,0.00019178,2]
[372387026,1752621065988,460.0,0.00019178,2]
[372387027,1752621067489,460.0,0.00019178,2]
[372387028,1752621067783,460.0,0.00019452,2]
[372387029,1752621069047,460.0,0.00019178,2]
[372387030,1752621070922,461.13663336,0.00019178,2]
[372387031,1752621071981,564.50914405,0.00019178,2]
[372387032,1752621072722,460.0,0.00019178,2]
[372387033,1752621073155,500.0,0.00019051,2]
[372387034,1752621073199,500.0,0.00019051,2]
[372387035,1752621073253,500.0,0.00019051,2]
[372387036,1752621073315,500.0,0.00019051,2]
[372387037,1752621073381,500.0,0.00019051,2]
[372387038,1752621073424,515.0,0.00019051,2]
[372387039,1752621073929,460.0,0.00019178,2]
[372387040,1752621075177,460.0,0.00019178,2]
[372387041,1752621075428,460.0,0.00019452,2]
[372387042,1752621075648,460.0,0.00019178,2]
[372387043,1752621075834,460.0,0.00019178,2]
[372387044,1752621076085,460.0,0.00019452,2]
[372387045,1752621079189,460.0,0.00019178,2]
[372387046,1752621081260,460.44928337,0.00019178,2]
[372387047,1752621082441,460.0,0.00019178,2]
[372387048,1752621082674,460.0,0.00019452,2]
[372387049,1752621083989,460.0,0.00019178,2]
[372387050,1752621084259,418.51252218,0.00019452,2]
[372387051,1752621156887,-300.0,0.00019177,2]
[372387052,1752621156908,-463.99034184,0.00019178,2]
[372387053,1752621156931,-460.0,0.00019178,2]
[372387054,1752621156953,-460.0,0.00019178,2]
[372387055,1752621156975,-460.0,0.00019178,2]
[372387056,1752621156998,-460.0,0.00019178,2]
[372387057,1752621157021,-597.67,0.00019178,2]
[372387058,1752621157041,-461.25432327,0.00019178,2]
[372387059,1752621157066,-520.6269961,0.00019178,2]
[372387060,1752621157088,-460.0,0.00019178,2]
[372387061,1752621157110,-460.0,0.00019178,2]
[372387062,1752621157131,-460.0,0.00019178,2]
[372387063,1752621157152,-436.45833879,0.00019178,2]
[372387064,1752621159634,500.0,0.00013699,2]
[372387065,1752621272095,11829.3416947,0.00018176,2]
[372387079,1752621565340,512.4,0.0001811,10]
[372387080,1752621573979,5217.3189072,0.00018151,2]
[372387085,1752621779999,279.524724,0.00013699,2]
[372387090,1752621952154,-294.41350842,0.00018877,2]
[372387091,1752621952175,-195.79208783,0.00018976,2]
[372387092,1752621952196,-440.76393697,0.00019061,2]
[372387093,1752621952217,-300.0,0.00019076,2]
[372387094,1752621952239,-1189.64160441,0.00019076,2]
[372387096,1752621958095,-10.35839559,0.00019076,2]
[372387097,1752621958117,-1091.60367553,0.00019077,2]
[372387101,1752622029085,-230.3975474,0.0001872,2]
[372387102,1752622029106,-830.95374274,0.000189,2]
[372387103,1752622031089,-239.86901331,0.000189,2]
[372387104,1752622031111,-300.0,0.00019076,2]
[372387105,1752622031132,-300.0,0.00019077,2]
[372387106,1752622031152,-300.0,0.00019077,2]
[372387107,1752622031173,-300.0,0.00019077,2]
[372387108,1752622031194,-1200.0,0.00019077,2]
[372387109,1752622031217,-4098.88817062,0.00019078,2]
[372387110,1752622032081,-1205.2534492,0.00019078,2]
[372387111,1752622045523,-4695.85838018,0.00019078,2]
[372387112,1752622045549,-500.0,0.00019177,2]
[372387113,1752622045573,-500.0,0.00019177,2]
[372387114,1752622045597,-500.0,0.00019177,2]
[372387115,1752622045621,-500.0,0.00019177,2]
[372387116,1752622045646,-500.0,0.00019177,2]
[372387117,1752622045670,-500.0,0.00019177,2]
[372387118,1752622045694,-500.0,0.00019177,2]
[372387119,1752622045717,-538.62745109,0.00019177,2]
[372387120,1752622045741,-142.00167156,0.00019177,2]
[372387137,1752622232600,-300.0,0.00019077,2]
[372387139,1752622232611,-1200.0,0.00019077,2]
[372387141,1752622232620,-11003.69221121,0.00019078,2]
[372387143,1752622232650,-4731.64001455,0.00019078,2]
[372387144,1752622232660,-500.0,0.00019173,2]
[372387145,1752622232669,-17.99065501,0.00019173,2]
[372387199,1752622238529,-243.32453346,0.00019173,2]
[372387201,1752622238539,-357.99832844,0.00019177,2]
[372387203,1752622238548,-500.0,0.00019177,2]
[372387205,1752622238558,-500.0,0.00019177,2]
[372387207,1752622238572,-500.0,0.00019177,2]
[372387209,1752622238581,-500.0,0.00019177,2]
[372387211,1752622238591,-500.0,0.00019177,2]
[372387226,1752622238728,-500.0,0.00019177,2]
[372387228,1752622238738,-500.0,0.00019177,2]
[372387230,1752622238747,-500.0,0.00019177,2]
[372387232,1752622238757,-500.0,0.00019177,2]
[372387234,1752622238766,-534.24453602,0.00019177,2]
[372387236,1752622238776,-500.0,0.00019177,2]
[372387238,1752622238786,-109.83260206,0.00019177,2]
[372387240,1752622238797,-390.16739794,0.00019177,2]
[372387242,1752622238807,-500.0,0.00019177,2]
[372387244,1752622238817,-500.0,0.00019177,2]
[372387246,1752622238826,-500.0,0.00019177,2]
[372387248,1752622238836,-500.0,0.00019177,2]
[372387250,1752622238846,-176.34095698,0.00019177,2]
[372387252,1752622238855,-460.0,0.00019178,2]
[372387254,1752622238864,-460.0,0.00019178,2]
[372387256,1752622238873,-460.0,0.00019178,2]
[372387258,1752622238885,-219.3307622,0.00019178,2]
[372387260,1752622238895,-306.41379701,0.00019178,2]
[372387261,1752622238904,-460.0,0.00019178,2]
[372387262,1752622238914,-269.40828402,0.00019178,2]
[372387263,1752622238923,-589.36114662,0.00019178,2]
[372387264,1752622238933,-201.57063895,0.00019178,2]
[372387266,1752622238943,-460.0,0.00019178,2]
[372387268,1752622238952,-460.0,0.00019178,2]
[372387270,1752622238961,-460.0,0.00019178,2]
[372387272,1752622238970,-460.0,0.00019178,2]
[372387274,1752622238980,-460.0,0.00019178,2]
[372387276,1752622238990,-460.0,0.00019178,2]
[372387278,1752622238999,-460.0,0.00019178,2]
[372387280,1752622239009,-461.28951076,0.00019178,2]
[372387282,1752622239018,-460.71393165,0.00019178,2]
[372387284,1752622239028,-460.0,0.00019178,2]
[372387286,1752622239038,-460.0,0.00019178,2]
[372387288,1752622239048,-460.99167815,0.00019178,2]
[372387290,1752622239057,-460.0,0.00019178,2]
[372387292,1752622239067,-460.0,0.00019178,2]
[372387294,1752622239076,-462.96068572,0.00019178,2]
[372387296,1752622239085,-461.94412986,0.00019178,2]
[372387298,1752622239095,-460.0,0.00019178,2]
[372387300,1752622239104,-460.0,0.00019178,2]
[372387302,1752622239113,-460.0,0.00019178,2]
[372387304,1752622239122,-460.0,0.00019178,2]
[372387306,1752622239132,-520.09,0.00019178,2]
[372387308,1752622239141,-460.0,0.00019178,2]
[372387310,1752622239150,-460.0,0.00019178,2]
[372387312,1752622239159,-460.0,0.00019178,2]
[372387314,1752622239169,-460.0,0.00019178,2]
[372387316,1752622239178,-460.0,0.00019178,2]
[372387318,1752622239188,-460.0,0.00019178,2]
[372387320,1752622239197,-956.44046807,0.00019178,2]
[372387322,1752622239206,-387.17494818,0.00019178,2]
[372387323,1752622239215,-460.0,0.00019178,2]
[372387324,1752622239224,-460.0,0.00019178,2]
[372387325,1752622239233,-460.0,0.00019178,2]
[372387326,1752622239242,-460.0,0.00019178,2]
[372387327,1752622239252,-460.0,0.00019178,2]